fUSD/lending_fUSD_20240331
["ID","MTS","AMOUNT","RATE_DAILY","PERIOD"]
[321168933,1711926637193,-648.95,0.00055342,120]
[321168934,1711926637202,-500.0,0.00055342,120]
[321168935,1711926637211,-500.0,0.00055342,120]
[321168936,1711926637220,-500.0,0.00055342,120]
[321168937,1711926637228,-540.81,0.00055342,120]
[321168938,1711926637237,-189.73,0.00055342,120]
[321168939,1711926637246,-500.0,0.00055342,120]
[321168940,1711926637255,-504.15956102,0.00055342,120]
[321168941,1711926637264,-500.0,0.00055342,120]
[321168942,1711926637273,-500.0,0.00055342,120]
[321168943,1711926637282,-500.0,0.00055342,120]
[321168944,1711926637291,-686.4,0.00055342,120]
[321168945,1711926637300,-198.08,0.00055342,120]
[321168946,1711926637309,-1104.01,0.00055342,120]
[321168947,1711926637317,-500.0,0.00055342,120]
[321168948,1711926637326,-500.0,0.00055342,120]
[321168949,1711926637335,-1419.24,0.00055342,120]
[321168950,1711926637344,-500.0,0.00055342,120]
[321168951,1711926637353,-500.0,0.00055342,120]
[321168952,1711926637362,-500.0,0.00055342,120]
[321168953,1711926637371,-219.02847423,0.00055342,120]
[321168954,1711926637380,-739.87,0.00055342,120]
[321168955,1711926637391,-500.0,0.00055342,120]
[321168956,1711926637399,-943.24,0.00055342,120]
[321168957,1711926637408,-235.56,0.00055342,120]
[321168958,1711926637417,-500.0,0.00055342,120]
[321168959,1711926637426,-500.0,0.00055342,120]
[321168960,1711926637435,-500.0,0.00055342,120]
[321168961,1711926637444,-500.0,0.00055342,21]
[321168962,1711926637453,-500.0,0.00055342,120]
[321168963,1711926637462,-500.0,0.00055342,120]
[321168964,1711926637472,-500.0,0.00055342,120]
[321168965,1711926637482,-500.0,0.00055342,120]
[321168966,1711926637491,-500.0,0.00055342,120]
[321168967,1711926637501,-500.0,0.00055342,120]
[321168968,1711926637511,-823.48,0.00055342,120]
[321168969,1711926637520,-528.34,0.00055342,120]
[321168970,1711926637529,-500.0,0.00055342,120]
[321168971,1711926637539,-157.38329326,0.00055342,120]
[321168972,1711926637548,-732.72,0.00055342,120]
[321168973,1711926637558,-1863.01,0.00055342,120]
[321168974,1711926637568,-500.0,0.00055342,120]
[321168975,1711926637577,-547.84,0.00055342,120]
[321168976,1711926637586,-500.0,0.00055342,120]
[321168977,1711926637594,-500.0,0.00055342,120]
[321168978,1711926637603,-500.0,0.00055342,120]
[321168979,1711926637612,-500.0,0.00055342,120]
[321168980,1711926637621,-500.0,0.00055342,120]
[321168981,1711926637630,-500.0,0.00055342,120]
[321168982,1711926637639,-500.0,0.00055342,120]
[321168983,1711926637648,-500.0,0.00055342,120]
[321168984,1711926637657,-500.0,0.00055342,120]
[321168985,1711926637666,-500.0,0.00055342,120]
[321168986,1711926637675,-605.66,0.00055342,120]
[321168987,1711926637684,-992.98,0.00055342,120]
[321168988,1711926637693,-500.0,0.00055342,120]
[321168989,1711926637703,-500.0,0.00055342,120]
[321168990,1711926637712,-588.227,0.00055379,120]
[321168991,1711926637721,-2422.0,0.00055379,120]
[321168992,1711926637731,-1414.213,0.00055379,120]
[321168993,1711926637741,-964.865,0.00055379,120]
[321168994,1711926637750,-150.0,0.00055379,120]
[321168995,1711926637759,-1226.0,0.00055379,120]
[321168996,1711926637768,-544.352,0.00055379,120]
[321168997,1711926637778,-1253.0,0.00055379,120]
[321168998,1711926637787,-657.743,0.00055379,120]
[321168999,1711926637796,-433.0,0.00055379,120]
[321169000,1711926637805,-279.0,0.00055379,120]
[321169001,1711926637815,-803.0,0.00055379,120]
[321169002,1711926637824,-1268.0,0.00055379,120]
[321169003,1711926637834,-211.39,0.00055379,120]
[321169004,1711926637843,-2983.0,0.00055379,120]
[321169005,1711926637852,-1492.336,0.00055379,120]
[321169006,1711926637861,-396.0,0.00055379,120]
[321169007,1711926637870,-1139.0,0.00055379,120]
[321169008,1711926637879,-2425.0,0.00055379,120]
[321169009,1711926637889,-1662.627,0.00055379,120]
[321169010,1711926637897,-152.166,0.00055379,120]
[321169011,1711926637907,-197.0,0.00055379,120]
[321169012,1711926637916,-227.0,0.00055379,2]
[321169013,1711926637925,-5685.0,0.00055379,120]
[321169014,1711926637934,-2451.0,0.00055379,120]
[321169015,1711926637943,-4775.0,0.00055379,120]
[321169016,1711926637953,-42999.0,0.00055379,120]
[321169017,1711926637962,-1178.0,0.00055379,120]
[321169018,1711926637974,-792.88,0.00055379,120]
[321169019,1711926637985,-159.75132017,0.00055486,2]
[321169020,1711926637994,-150.17,0.00055591,120]
[321169021,1711926638004,-155.0,0.00055614,4]
[321169022,1711926638014,-192.50033696,0.00055615,20]
[321169023,1711926638023,-2565.05651449,0.00055615,30]
[321169024,1711926638032,-2000.0,0.00055615,2]
[321169025,1711926638044,-500.0,0.00055616,120]
[321169026,1711926638055,-383.36,0.00055616,120]
[321169027,1711926638064,-500.0,0.00055616,120]
[321169028,1711926638074,-500.0,0.00055616,120]
[321169029,1711926638083,-175.76,0.00055616,120]
[321169030,1711926638093,-500.0,0.00055616,120]
[321169031,1711926638104,-500.0,0.00055616,120]
[321169032,1711926638113,-708.54,0.00055616,120]
[321169033,1711926638122,-608.72,0.00055616,120]
[321169034,1711926638131,-500.0,0.00055616,120]
[321169035,1711926638140,-500.0,0.00055616,120]
[321169036,1711926638149,-500.0,0.00055616,120]
[321169037,1711926638158,-656.41,0.00055616,120]
[321169038,1711926638170,-500.0,0.00055616,120]
[321169039,1711926638180,-500.0,0.00055616,120]
[321169040,1711926638190,-629.5,0.00055616,120]
[321169041,1711926638201,-211.72,0.00055616,120]
[321169042,1711926638211,-500.0,0.00055616,120]
[321169043,1711926638221,-500.0,0.00055616,120]
[321169044,1711926638230,-500.0,0.00055616,120]
[321169045,1711926638240,-974.24,0.00055616,120]
[321169047,1711926638250,-500.0,0.00055616,120]
[321169048,1711926638259,-500.0,0.00055616,120]
[321169050,1711926638269,-1687.4,0.00055616,120]
[321169052,1711926638278,-333.10286333,0.00055616,120]
[321169054,1711926638287,-500.0,0.00055616,120]
[321169056,1711926638296,-648.95,0.00055616,120]
[321169058,1711926638305,-554.65675382,0.00055616,120]
[321169061,1711926638315,-500.0,0.00055616,120]
[321169063,1711926638324,-500.0,0.00055616,120]
[321169065,1711926638334,-500.0,0.00055616,120]
[321169067,1711926638343,-500.0,0.00055616,120]
[321169069,1711926638351,-500.0,0.00055616,120]
[321169071,1711926638361,-500.0,0.00055616,120]
[321169073,1711926638370,-686.4,0.00055616,120]
[321169074,1711926638380,-1104.01,0.00055616,120]
[321169075,1711926638390,-500.0,0.00055616,120]
[321169076,1711926638401,-501.23,0.00055616,120]
[321169077,1711926638412,-1419.24,0.00055616,120]
[321169078,1711926638421,-500.0,0.00055616,120]
[321169079,1711926638430,-500.0,0.00055616,120]
[321169080,1711926638439,-500.0,0.00055616,120]
[321169081,1711926638449,-739.87,0.00055616,120]
[321169082,1711926638458,-500.0,0.00055616,120]
[321169083,1711926638467,-943.24,0.00055616,120]
[321169084,1711926638476,-500.0,0.00055616,120]
[321169085,1711926638484,-500.0,0.00055616,120]
[321169086,1711926638493,-500.0,0.00055616,120]
[321169087,1711926638503,-500.0,0.00055616,21]
[321169088,1711926638512,-500.0,0.00055616,120]
[321169089,1711926638521,-500.0,0.00055616,120]
[321169090,1711926638530,-314.98244112,0.00055616,120]
[321169091,1711926638540,-500.0,0.00055616,120]
[321169092,1711926638549,-500.0,0.00055616,120]
[321169093,1711926638676,-500.0,0.00055616,120]
[321169094,1711926638688,-823.48,0.00055616,120]
[321169095,1711926638697,-528.34,0.00055616,120]
[321169096,1711926638707,-173.35,0.00055616,120]
[321169097,1711926638716,-732.72,0.00055616,120]
[321169098,1711926638725,-1863.01,0.00055616,120]
[321169099,1711926638735,-500.0,0.00055616,120]
[321169100,1711926638744,-160.43348,0.00055616,76]
[321169101,1711926638753,-500.0,0.00055616,120]
[321169102,1711926638762,-500.0,0.00055616,120]
[321169103,1711926638772,-500.0,0.00055616,120]
[321169104,1711926638781,-500.0,0.00055616,120]
[321169106,1711926638791,-500.0,0.00055616,120]
[321169107,1711926638800,-500.0,0.00055616,120]
[321169108,1711926638809,-500.0,0.00055616,120]
[321169109,1711926638818,-500.0,0.00055616,120]
[321169110,1711926638828,-500.0,0.00055616,120]
[321169111,1711926638837,-500.0,0.00055616,120]
[321169113,1711926638846,-992.98,0.00055616,120]
[321169115,1711926638855,-500.0,0.00055616,120]
[321169117,1711926638865,-500.0,0.00055616,120]
[321169119,1711926638873,-800.0,0.00055705,120]
[321169121,1711926638882,-753.02623452,0.00055887,2]
[321169123,1711926638894,-444.51426008,0.00055889,4]
[321169125,1711926638904,-500.0,0.0005589,120]
[321169127,1711926638913,-243.56,0.0005589,120]
[321169129,1711926638922,-500.0,0.0005589,120]
[321169131,1711926638932,-500.0,0.0005589,120]
[321169132,1711926638941,-321.6,0.0005589,120]
[321169133,1711926638950,-708.54,0.0005589,120]
[321169134,1711926638959,-608.72,0.0005589,120]
[321169135,1711926638969,-500.0,0.0005589,120]
[321169136,1711926638981,-500.0,0.0005589,120]
[321169137,1711926638990,-500.0,0.0005589,120]
[321169138,1711926638999,-656.41,0.0005589,120]
[321169139,1711926639009,-500.0,0.0005589,120]
[321169140,1711926639019,-500.0,0.0005589,120]
[321169141,1711926639028,-629.5,0.0005589,120]
[321169142,1711926639037,-500.0,0.0005589,120]
[321169143,1711926639047,-500.0,0.0005589,120]
[321169144,1711926639057,-470.74,0.0005589,120]
[321169145,1711926639066,-974.24,0.0005589,120]
[321169146,1711926639075,-500.0,0.0005589,120]
[321169147,1711926639086,-500.0,0.0005589,120]
[321169148,1711926639095,-1687.4,0.0005589,120]
[321169149,1711926639106,-500.0,0.0005589,120]
[321169150,1711926639117,-648.95,0.0005589,120]
[321169151,1711926639126,-500.0,0.0005589,120]
[321169152,1711926639135,-500.0,0.0005589,120]
[321169153,1711926639144,-500.0,0.0005589,120]
[321169154,1711926639154,-500.0,0.0005589,120]
[321169155,1711926639163,-500.0,0.0005589,120]
[321169156,1711926639172,-500.0,0.0005589,120]
[321169157,1711926639182,-686.4,0.0005589,120]
[321169158,1711926639191,-1104.01,0.0005589,120]
[321169159,1711926639201,-483.59573167,0.0005589,120]
[321169160,1711926639211,-1419.24,0.0005589,120]
[321169161,1711926639221,-500.0,0.0005589,120]
[321169162,1711926639232,-500.0,0.0005589,120]
[321169163,1711926639241,-205.81,0.0005589,120]
[321169164,1711926639250,-739.87,0.0005589,120]
[321169165,1711926639261,-600.67,0.0005589,120]
[321169166,1711926639271,-943.24,0.0005589,120]
[321169167,1711926639280,-500.0,0.0005589,120]
[321169168,1711926639290,-469.05,0.0005589,120]
[321169169,1711926639300,-500.0,0.0005589,120]
[321169170,1711926639310,-500.0,0.0005589,21]
[321169171,1711926639320,-611.51600906,0.0005589,120]
[321169172,1711926639330,-500.0,0.0005589,120]
[321169173,1711926639339,-289.98,0.0005589,120]
[321169174,1711926639348,-500.0,0.0005589,120]
[321169175,1711926639357,-500.0,0.0005589,120]
[321169176,1711926639367,-823.48,0.0005589,120]
[321169177,1711926639376,-528.34,0.0005589,120]
[321169178,1711926639387,-732.72,0.0005589,120]
[321169179,1711926639396,-1863.01,0.0005589,120]
[321169180,1711926639405,-500.0,0.0005589,120]
[321169181,1711926639414,-500.0,0.0005589,120]
[321169182,1711926639423,-500.0,0.0005589,120]
[321169183,1711926639432,-500.0,0.0005589,120]
[321169184,1711926639441,-500.0,0.0005589,120]
[321169185,1711926639450,-500.0,0.0005589,120]
[321169186,1711926639459,-500.0,0.0005589,120]
[321169187,1711926639469,-500.0,0.0005589,120]
[321169188,1711926639478,-500.0,0.0005589,120]
[321169189,1711926639488,-500.0,0.0005589,120]
[321169190,1711926639497,-500.0,0.0005589,120]
[321169191,1711926639507,-992.98,0.0005589,120]
[321169192,1711926639516,-500.0,0.0005589,120]
[321169193,1711926639526,-300.0,0.000559,20]
[321169194,1711926639535,-172.5891312,0.00056064,2]
[321169195,1711926639545,-3458.869,0.00056064,2]
[321169196,1711926639554,-172.7698,0.00056064,2]
[321169197,1711926639563,-500.0,0.00056164,120]
[321169198,1711926639572,-500.0,0.00056164,120]
[321169199,1711926639583,-500.0,0.00056164,120]
[321169200,1711926639594,-708.54,0.00056164,120]
[321169201,1711926639604,-608.72,0.00056164,120]
[321169202,1711926639613,-500.0,0.00056164,120]
[321169203,1711926639623,-500.0,0.00056164,120]
[321169204,1711926639632,-500.0,0.00056164,120]
[321169205,1711926639642,-656.41,0.00056164,120]
[321169206,1711926639651,-333.76,0.00056164,120]
[321169207,1711926639660,-500.0,0.00056164,120]
[321169208,1711926639669,-629.5,0.00056164,120]
[321169209,1711926639679,-500.0,0.00056164,120]
[321169210,1711926639690,-500.0,0.00056164,120]
[321169211,1711926639699,-974.24,0.00056164,120]
[321169212,1711926639709,-500.0,0.00056164,120]
[321169213,1711926639718,-500.0,0.00056164,120]
[321169214,1711926639728,-1687.4,0.00056164,120]
[321169215,1711926639737,-500.0,0.00056164,120]
[321169216,1711926639747,-648.95,0.00056164,120]
[321169217,1711926639756,-500.0,0.00056164,120]
[321169218,1711926639767,-500.0,0.00056164,120]
[321169219,1711926639776,-433.16,0.00056164,120]
[321169220,1711926639786,-500.0,0.00056164,120]
[321169221,1711926639795,-560.44,0.00056164,120]
[321169222,1711926639805,-500.0,0.00056164,120]
[321169223,1711926639814,-686.4,0.00056164,120]
[321169224,1711926639823,-1104.01,0.00056164,120]
[321169225,1711926639833,-1419.24,0.00056164,120]
[321169226,1711926639843,-359.86918287,0.00056164,120]
[321169227,1711926639854,-500.0,0.00056164,120]
[321169228,1711926639864,-739.87,0.00056164,120]
[321169229,1711926639873,-943.24,0.00056164,120]
[321169230,1711926639883,-500.0,0.00056164,120]
[321169231,1711926639893,-500.0,0.00056164,120]
[321169232,1711926639903,-500.0,0.00056164,21]
[321169233,1711926639912,-500.0,0.00056164,120]
[321169234,1711926639923,-500.0,0.00056164,120]
[321169235,1711926639932,-500.0,0.00056164,120]
[321169236,1711926639942,-823.48,0.00056164,120]
[321169237,1711926639951,-528.34,0.00056164,120]
[321169238,1711926639960,-732.72,0.00056164,120]
[321169239,1711926639971,-1863.01,0.00056164,120]
[321169240,1711926639983,-475.4840055,0.00056164,120]
[321169241,1711926639993,-413.98,0.00056164,120]
[321169242,1711926640002,-500.0,0.00056164,120]
[321169243,1711926640012,-500.0,0.00056164,120]
[321169244,1711926640023,-500.0,0.00056164,120]
[321169245,1711926640032,-225.20650312,0.00056164,120]
[321169246,1711926640042,-500.0,0.00056164,120]
[321169247,1711926640052,-500.0,0.00056164,120]
[321169248,1711926640062,-500.0,0.00056164,120]
[321169249,1711926640071,-500.0,0.00056164,120]
[321169250,1711926640081,-500.0,0.00056164,120]
[321169251,1711926640090,-992.98,0.00056164,120]
[321169252,1711926640100,-500.0,0.00056164,120]
[321169253,1711926640110,-1500.0,0.000564,90]
[321169254,1711926640119,-644.09937226,0.00056438,120]
[321169255,1711926640128,-500.0,0.00056438,120]
[321169256,1711926640138,-500.0,0.00056438,120]
[321169257,1711926640147,-708.54,0.00056438,120]
[321169258,1711926640156,-608.72,0.00056438,120]
[321169259,1711926640166,-500.0,0.00056438,120]
[321169260,1711926640175,-500.0,0.00056438,120]
[321169261,1711926640184,-500.0,0.00056438,120]
[321169262,1711926640194,-656.41,0.00056438,120]
[321169263,1711926640203,-500.0,0.00056438,120]
[321169264,1711926640212,-629.5,0.00056438,120]
[321169265,1711926640221,-500.0,0.00056438,120]
[321169266,1711926640231,-500.0,0.00056438,120]
[321169268,1711926640241,-974.24,0.00056438,120]
[321169269,1711926640250,-500.0,0.00056438,120]
[321169270,1711926640260,-500.0,0.00056438,120]
[321169271,1711926640269,-1687.4,0.00056438,120]
[321169272,1711926640279,-500.0,0.00056438,120]
[321169273,1711926640288,-648.95,0.00056438,120]
[321169275,1711926640297,-500.0,0.00056438,120]
[321169276,1711926640306,-500.0,0.00056438,120]
[321169277,1711926640316,-500.0,0.00056438,120]
[321169278,1711926640326,-500.0,0.00056438,120]
[321169279,1711926640335,-686.4,0.00056438,120]
[321169280,1711926640344,-1104.01,0.00056438,120]
[321169281,1711926640354,-1419.24,0.00056438,120]
[321169282,1711926640363,-500.0,0.00056438,120]
[321169283,1711926640372,-739.87,0.00056438,120]
[321169284,1711926640382,-943.24,0.00056438,120]
[321169285,1711926640392,-500.0,0.00056438,120]
[321169286,1711926640402,-500.0,0.00056438,120]
[321169287,1711926640411,-500.0,0.00056438,21]
[321169288,1711926640420,-512.35,0.00056438,120]
[321169289,1711926640429,-500.0,0.00056438,120]
[321169290,1711926640438,-500.0,0.00056438,120]
[321169291,1711926640448,-823.48,0.00056438,120]
[321169292,1711926640457,-528.34,0.00056438,120]
[321169293,1711926640467,-732.72,0.00056438,120]
[321169294,1711926640476,-1863.01,0.00056438,120]
[321169295,1711926640485,-500.0,0.00056438,120]
[321169296,1711926640494,-500.0,0.00056438,120]
[321169297,1711926640503,-500.0,0.00056438,120]
[321169298,1711926640512,-500.0,0.00056438,120]
[321169299,1711926640521,-500.0,0.00056438,120]
[321169300,1711926640530,-500.0,0.00056438,120]
[321169301,1711926640540,-500.0,0.00056438,120]
[321169302,1711926640549,-500.0,0.00056438,120]
[321169303,1711926640558,-992.98,0.00056438,120]
[321169304,1711926640568,-500.0,0.00056438,120]
[321169305,1711926640577,-5525.91477163,0.00056622,2]
[321169306,1711926640590,-181.81,0.00056645,120]
[321169307,1711926640599,-14132.90484172,0.00056676,2]
[321169308,1711926640609,-524.98609428,0.000567,30]
[321169309,1711926640618,-500.0,0.00056712,120]
[321169310,1711926640627,-500.0,0.00056712,120]
[321169311,1711926640637,-708.54,0.00056712,120]
[321169312,1711926640646,-608.72,0.00056712,120]
[321169313,1711926640655,-500.0,0.00056712,120]
[321169314,1711926640665,-500.0,0.00056712,120]
[321169315,1711926640674,-500.0,0.00056712,120]
[321169316,1711926640683,-656.41,0.00056712,120]
[321169317,1711926640693,-500.0,0.00056712,120]
[321169318,1711926640702,-629.5,0.00056712,120]
[321169319,1711926640712,-551.67745315,0.00056712,120]
[321169320,1711926640722,-500.0,0.00056712,120]
[321169321,1711926640731,-974.24,0.00056712,120]
[321169322,1711926640741,-500.0,0.00056712,120]
[321169323,1711926640751,-500.0,0.00056712,120]
[321169324,1711926640761,-1687.4,0.00056712,120]
[321169325,1711926640770,-500.0,0.00056712,120]
[321169326,1711926640780,-648.95,0.00056712,120]
[321169327,1711926640790,-500.0,0.00056712,120]
[321169328,1711926640799,-500.0,0.00056712,120]
[321169329,1711926640808,-500.0,0.00056712,120]
[321169330,1711926640817,-686.4,0.00056712,120]
[321169331,1711926640829,-1104.01,0.00056712,120]
[321169333,1711926640839,-1419.24,0.00056712,120]
[321169334,1711926640849,-500.0,0.00056712,120]
[321169335,1711926640859,-739.87,0.00056712,120]
[321169336,1711926640869,-943.24,0.00056712,120]
[321169337,1711926640879,-500.0,0.00056712,120]
[321169338,1711926640889,-500.0,0.00056712,21]
[321169340,1711926640899,-500.0,0.00056712,120]
[321169341,1711926640909,-500.0,0.00056712,120]
[321169342,1711926640919,-500.0,0.00056712,120]
[321169343,1711926640929,-823.48,0.00056712,120]
[321169344,1711926640938,-528.34,0.00056712,120]
[321169345,1711926640947,-732.72,0.00056712,120]
[321169346,1711926640957,-1863.01,0.00056712,120]
[321169347,1711926640967,-500.0,0.00056712,120]
[321169348,1711926640982,-500.0,0.00056712,120]
[321169349,1711926640992,-500.0,0.00056712,120]
[321169350,1711926641001,-500.0,0.00056712,120]
[321169351,1711926641011,-500.0,0.00056712,120]
[321169352,1711926641022,-412.95562623,0.00056712,120]
[321169353,1711926641033,-500.0,0.00056712,120]
[321169354,1711926641042,-500.0,0.00056712,120]
[321169355,1711926641052,-992.98,0.00056712,120]
[321169356,1711926641061,-500.0,0.00056712,120]
[321169357,1711926641070,-500.0,0.00056986,120]
[321169358,1711926641116,-500.0,0.00056986,120]
[321169359,1711926641126,-708.54,0.00056986,120]
[321169360,1711926641137,-608.72,0.00056986,120]
[321169361,1711926641147,-500.0,0.00056986,120]
[321169362,1711926641156,-500.0,0.00056986,120]
[321169363,1711926641166,-582.15,0.00056986,120]
[321169364,1711926641177,-656.41,0.00056986,120]
[321169365,1711926641187,-500.0,0.00056986,120]
[321169366,1711926641197,-629.5,0.00056986,120]
[321169367,1711926641206,-500.0,0.00056986,120]
[321169368,1711926641216,-974.24,0.00056986,120]
[321169369,1711926641226,-500.0,0.00056986,120]
[321169370,1711926641235,-500.0,0.00056986,120]
[321169371,1711926641246,-1687.4,0.00056986,120]
[321169372,1711926641255,-305.82685117,0.00056986,120]
[321169373,1711926641265,-648.95,0.00056986,120]
[321169374,1711926641274,-500.0,0.00056986,120]
[321169375,1711926641283,-500.0,0.00056986,120]
[321169376,1711926641292,-296.99374841,0.00056986,120]
[321169377,1711926641302,-686.4,0.00056986,120]
[321169378,1711926641311,-1104.01,0.00056986,120]
[321169379,1711926641321,-1419.24,0.00056986,120]
[321169380,1711926641330,-446.87903303,0.00056986,120]
[321169381,1711926641339,-739.87,0.00056986,120]
[321169382,1711926641348,-943.24,0.00056986,120]
[321169383,1711926641357,-500.0,0.00056986,120]
[321169384,1711926641367,-500.0,0.00056986,21]
[321169385,1711926641377,-500.0,0.00056986,120]
[321169386,1711926641387,-500.0,0.00056986,120]
[321169387,1711926641397,-500.0,0.00056986,120]
[321169388,1711926641406,-823.48,0.00056986,120]
[321169389,1711926641415,-528.34,0.00056986,120]
[321169390,1711926641424,-732.72,0.00056986,120]
[321169391,1711926641433,-1863.01,0.00056986,120]
[321169392,1711926641443,-500.0,0.00056986,120]
[321169393,1711926641452,-500.0,0.00056986,120]
[321169394,1711926641462,-494.70060405,0.00056986,120]
[321169395,1711926641471,-337.93,0.00056986,120]
[321169396,1711926641480,-500.0,0.00056986,120]
[321169397,1711926641489,-500.0,0.00056986,120]
[321169398,1711926641499,-500.0,0.00056986,120]
[321169399,1711926641508,-992.98,0.00056986,120]
[321169400,1711926641518,-500.0,0.00056986,120]
[321169401,1711926641526,-500.0,0.0005726,120]
[321169402,1711926641535,-500.0,0.0005726,120]
[321169403,1711926641545,-708.54,0.0005726,120]
[321169404,1711926641554,-608.72,0.0005726,120]
[321169405,1711926641564,-500.0,0.0005726,120]
[321169406,1711926641573,-500.0,0.0005726,120]
[321169407,1711926641582,-656.41,0.0005726,120]
[321169408,1711926641591,-500.0,0.0005726,120]
[321169409,1711926641600,-629.5,0.0005726,120]
[321169410,1711926641609,-500.0,0.0005726,120]
[321169411,1711926641618,-974.24,0.0005726,120]
[321169412,1711926641627,-500.0,0.0005726,120]
[321169413,1711926641636,-500.0,0.0005726,120]
[321169414,1711926641646,-1687.4,0.0005726,120]
[321169415,1711926641658,-648.95,0.0005726,120]
[321169416,1711926641677,-500.0,0.0005726,120]
[321169417,1711926641686,-500.0,0.0005726,120]
[321169418,1711926641694,-686.4,0.0005726,120]
[321169419,1711926641703,-1104.01,0.0005726,120]
[321169420,1711926641712,-1419.24,0.0005726,120]
[321169421,1711926641722,-1.98546547,0.0005726,120]
[321169422,1711926641822,-500.0,0.0005589,120]
[321169423,1711926641831,-737.88453453,0.0005726,120]
[321169424,1711926641840,-943.24,0.0005726,120]
[321169425,1711926641850,-554.74687709,0.0005726,120]
[321169426,1711926641859,-500.0,0.0005726,21]
[321169427,1711926641869,-206.31586366,0.0005726,120]
[321169428,1711926641879,-500.0,0.0005726,120]
[321169429,1711926641889,-500.0,0.0005726,120]
[321169430,1711926641898,-823.48,0.0005726,120]
[321169431,1711926641907,-528.34,0.0005726,120]
[321169432,1711926641917,-732.72,0.0005726,120]
[321169433,1711926641926,-1863.01,0.0005726,120]
[321169434,1711926641937,-500.0,0.0005726,120]
[321169435,1711926641946,-500.0,0.0005726,120]
[321169436,1711926641956,-500.0,0.0005726,120]
[321169437,1711926641967,-500.0,0.0005726,120]
[321169438,1711926641981,-497.43,0.0005726,120]
[321169439,1711926641992,-992.98,0.0005726,120]
[321169440,1711926642001,-500.0,0.0005726,120]
[321169441,1711926642010,-2778.3755777,0.000573,30]
[321169442,1711926642020,-493.0,0.000573,30]
[321169443,1711926642030,-495.17,0.00057325,2]
[321169444,1711926642040,-500.0,0.00057534,120]
[321169445,1711926642051,-500.0,0.00057534,120]
[321169446,1711926642060,-708.54,0.00057534,120]
[321169447,1711926642071,-9.36890346,0.00057534,120]
[321169448,1711926642201,-500.0,0.00055068,120]
[321169449,1711926642210,-500.0,0.00055342,120]
[321169450,1711926642220,-500.0,0.00055616,120]
[321169451,1711926642229,-500.0,0.0005589,120]
[321169452,1711926642238,-431.08908082,0.00056164,120]
[321169453,1711926642247,-500.0,0.00056164,120]
[321169454,1711926642256,-500.0,0.00056438,120]
[321169455,1711926642266,-500.0,0.00056712,120]
[321169456,1711926642275,-500.0,0.00056986,120]
[321169457,1711926642284,-279.23596047,0.0005726,120]
[321169458,1711926642293,-599.35109654,0.00057534,120]
[321169459,1711926642302,-500.0,0.00057534,120]
[321169460,1711926642311,-500.0,0.00057534,120]
[321169461,1711926642320,-656.41,0.00057534,120]